[Event "Titled Tuesday Blitz June 20 Late 2023"]
[White "Spata, German"]
[Black "Krishnakumar, Sriram"]
[WhiteFideId "113026"]
[BlackFideId "30915856"]
[WhiteElo "2260"]
[BlackElo "2461"]
[Result "1-0"]
[Round "11"]
[TimeControl "180+2"]
[Date "2023.06.20"]
[WhiteClock "0:00:09"]
[BlackClock "0:00:35"]
[Board "55"]

1. b3 {[%clk 0:02:59]}  g6 {[%clk 0:02:58]} 2. Bb2 {[%clk 0:02:59]}  Nf6 {[%clk 0:02:59]} 3. Nf3 {[%clk 0:02:59]}  Bg7 {[%clk 0:03:00]} 4. e3 {[%clk 0:03:00]}  O-O {[%clk 0:03:00]} 5. Be2 {[%clk 0:03:00]}  d5 {[%clk 0:03:01]} 6. O-O {[%clk 0:03:00]}  c5 {[%clk 0:03:01]} 7. c4 {[%clk 0:03:01]}  e6 {[%clk 0:02:59]} 8. cxd5 {[%clk 0:03:01]}  exd5 {[%clk 0:02:59]} 9. d4 {[%clk 0:03:01]}  b6 {[%clk 0:02:59]} 10. Nc3 {[%clk 0:03:01]}  Bb7 {[%clk 0:02:59]} 11. Rc1 {[%clk 0:03:01]}  Nbd7 {[%clk 0:02:58]} 12. dxc5 {[%clk 0:03:01]}  bxc5 {[%clk 0:02:58]} 13. Na4 {[%clk 0:03:01]}  Rc8 {[%clk 0:02:57]} 14. Ba3 {[%clk 0:02:59]}  Ne4 {[%clk 0:02:52]} 15. Nd2 {[%clk 0:03:00]}  Qe7 {[%clk 0:02:36]} 16. Nxe4 {[%clk 0:02:57]}  dxe4 {[%clk 0:02:28]} 17. Qc2 {[%clk 0:02:52]}  Be5 {[%clk 0:02:13]} 18. Nxc5 {[%clk 0:02:52]}  Nxc5 {[%clk 0:01:57]} 19. Bxc5 {[%clk 0:02:50]}  Qc7 {[%clk 0:01:50]} 20. g3 {[%clk 0:02:42]}  Bd6 {[%clk 0:01:43]} 21. b4 {[%clk 0:02:41]}  Bxc5 {[%clk 0:01:41]} 22. bxc5 {[%clk 0:02:36]}  Qa5 {[%clk 0:01:35]} 23. Rfd1 {[%clk 0:02:32]}  Rc7 {[%clk 0:01:34]} 24. Bg4 {[%clk 0:01:38]}  f5 {[%clk 0:01:28]} 25. Qc4+ {[%clk 0:01:30]}  Kh8 {[%clk 0:01:25]} 26. Qd4+ {[%clk 0:01:30]}  Kg8 {[%clk 0:01:24]} 27. Be2 {[%clk 0:01:29]}  Ba6 {[%clk 0:01:14]} 28. Bc4+ {[%clk 0:01:25]}  Bxc4 {[%clk 0:01:13]} 29. Qxc4+ {[%clk 0:01:26]}  Kg7 {[%clk 0:01:12]} 30. c6 {[%clk 0:01:21]}  Qe5 {[%clk 0:01:04]} 31. Rd7+ {[%clk 0:01:16]}  Rxd7 {[%clk 0:01:04]} 32. cxd7 {[%clk 0:01:16]}  Rd8 {[%clk 0:01:04]} 33. Qc7 {[%clk 0:01:12]}  Qe7 {[%clk 0:01:01]} 34. Rd1 {[%clk 0:01:06]}  a6 {[%clk 0:01:00]} 35. Qc3+ {[%clk 0:01:04]}  Qf6 {[%clk 0:01:00]} 36. Qc7 {[%clk 0:00:58]}  Qe7 {[%clk 0:00:58]} 37. h4 {[%clk 0:00:53]}  h5 {[%clk 0:00:58]} 38. a4 {[%clk 0:00:52]}  a5 {[%clk 0:00:56]} 39. Rd6 {[%clk 0:00:48]}  Kh7 {[%clk 0:00:53]} 40. Qc6 {[%clk 0:00:47]}  Qf7 {[%clk 0:00:49]} 41. Qc7 {[%clk 0:00:43]}  Qe7 {[%clk 0:00:48]} 42. Kg2 {[%clk 0:00:36]}  Kg7 {[%clk 0:00:46]} 43. Qc3+ {[%clk 0:00:34]}  Kh7 {[%clk 0:00:46]} 44. Qd4 {[%clk 0:00:32]}  Qf7 {[%clk 0:00:41]} 45. Qa7 {[%clk 0:00:23]}  Qe7 {[%clk 0:00:40]} 46. Qxa5 {[%clk 0:00:19]}  Rxd7 {[%clk 0:00:38]} 47. Rxd7 {[%clk 0:00:19]}  Qxd7 {[%clk 0:00:39]} 48. Qb5 {[%clk 0:00:17]}  Qd1 {[%clk 0:00:38]} 49. Qb7+ {[%clk 0:00:15]}  Kh6 {[%clk 0:00:38]} 50. Qc8 {[%clk 0:00:11]}  Qf3+ {[%clk 0:00:36]} 51. Kg1 {[%clk 0:00:11]}  Qd1+ {[%clk 0:00:36]} 52. Kh2 {[%clk 0:00:11]}  Kh7 {[%clk 0:00:36]} 53. Qc7+ {[%clk 0:00:11]}  Kh6 {[%clk 0:00:36]} 54. Qb8 {[%clk 0:00:10]}  Qf3 {[%clk 0:00:35]} 55. Qh8# {[%clk 0:00:09]} 1-0


[Site "https://www.chess.com"]

[Event "Titled Tuesday Blitz June 20 Late 2023"]
[White "Martic, Ivan"]
[Black "Fiedorek, Michal"]
[WhiteFideId "929301"]
[BlackFideId "1199528"]
[WhiteElo "2346"]
[BlackElo "2135"]
[Result "0-1"]
[Round "11"]
[TimeControl "180+2"]
[Date "2023.06.20"]
[WhiteClock "0:00:12"]
[BlackClock "0:00:12"]
[Board "56"]

1. e4 {[%clk 0:03:00]}  c6 {[%clk 0:02:58]} 2. d3 {[%clk 0:03:00]}  d5 {[%clk 0:02:58]} 3. Nd2 {[%clk 0:03:00]}  dxe4 {[%clk 0:02:56]} 4. dxe4 {[%clk 0:03:01]}  g6 {[%clk 0:02:55]} 5. Ngf3 {[%clk 0:03:01]}  Bg7 {[%clk 0:02:56]} 6. Bc4 {[%clk 0:03:00]}  Nf6 {[%clk 0:02:54]} 7. O-O {[%clk 0:02:58]}  O-O {[%clk 0:02:54]} 8. c3 {[%clk 0:02:57]}  b5 {[%clk 0:02:50]} 9. Bb3 {[%clk 0:02:57]}  Nbd7 {[%clk 0:02:49]} 10. Qe2 {[%clk 0:02:34]}  Nc5 {[%clk 0:02:46]} 11. Bc2 {[%clk 0:02:31]}  Qb6 {[%clk 0:02:41]} 12. b4 {[%clk 0:02:27]}  Na4 {[%clk 0:02:37]} 13. Bxa4 {[%clk 0:02:25]}  bxa4 {[%clk 0:02:38]} 14. Nc4 {[%clk 0:02:23]}  Ba6 {[%clk 0:02:26]} 15. Nxb6 {[%clk 0:01:58]}  Bxe2 {[%clk 0:02:25]} 16. Nxa8 {[%clk 0:01:59]}  Bxf1 {[%clk 0:02:25]} 17. Kxf1 {[%clk 0:01:59]}  Rxa8 {[%clk 0:02:25]} 18. Nd2 {[%clk 0:01:58]}  a5 {[%clk 0:02:21]} 19. bxa5 {[%clk 0:01:49]}  Rxa5 {[%clk 0:02:16]} 20. Rb1 {[%clk 0:01:49]}  Rb5 {[%clk 0:02:16]} 21. f3 {[%clk 0:01:38]}  Nd7 {[%clk 0:02:10]} 22. c4 {[%clk 0:01:35]}  Rxb1 {[%clk 0:02:05]} 23. Nxb1 {[%clk 0:01:36]}  Nb6 {[%clk 0:02:02]} 24. Na3 {[%clk 0:01:30]}  f5 {[%clk 0:01:31]} 25. Ke2 {[%clk 0:01:30]}  Kf7 {[%clk 0:01:30]} 26. Kd3 {[%clk 0:01:28]}  Ke6 {[%clk 0:01:30]} 27. Be3 {[%clk 0:01:25]}  Nd7 {[%clk 0:01:30]} 28. exf5+ {[%clk 0:01:22]}  gxf5 {[%clk 0:01:29]} 29. f4 {[%clk 0:01:19]}  Kd6 {[%clk 0:01:25]} 30. Nc2 {[%clk 0:00:53]}  e5 {[%clk 0:01:22]} 31. g3 {[%clk 0:00:39]}  e4+ {[%clk 0:01:19]} 32. Ke2 {[%clk 0:00:39]}  Nc5 {[%clk 0:01:00]} 33. Bd4 {[%clk 0:00:36]}  Ne6 {[%clk 0:00:29]} 34. Ba7 {[%clk 0:00:23]}  Bc3 {[%clk 0:00:27]} 35. h3 {[%clk 0:00:20]}  h5 {[%clk 0:00:26]} 36. Bb6 {[%clk 0:00:17]}  Nc5 {[%clk 0:00:17]} 37. Ba7 {[%clk 0:00:15]}  Nd3 {[%clk 0:00:16]} 38. Ne3 {[%clk 0:00:13]}  Ke6 {[%clk 0:00:17]} 39. a3 {[%clk 0:00:12]}  Bb2 {[%clk 0:00:13]} 40. g4 {[%clk 0:00:12]}  hxg4 {[%clk 0:00:13]} 41. h4 {[%clk 0:00:13]}  Nxf4+ {[%clk 0:00:12]} 42. Kd2 {[%clk 0:00:12]}  g3 {[%clk 0:00:12]} 43. Bb8 {[%clk 0:00:11]}  Be5 {[%clk 0:00:12]} 44. Bxe5 {[%clk 0:00:08]}  Kxe5 {[%clk 0:00:12]} 45. c5 {[%clk 0:00:07]}  g2 {[%clk 0:00:11]} 46. Nxg2 {[%clk 0:00:07]}  Nxg2 {[%clk 0:00:11]} 47. h5 {[%clk 0:00:08]}  Kf6 {[%clk 0:00:11]} 48. Kc3 {[%clk 0:00:08]}  e3 {[%clk 0:00:11]} 49. Kd3 {[%clk 0:00:08]}  f4 {[%clk 0:00:10]} 50. Ke2 {[%clk 0:00:08]}  Kg5 {[%clk 0:00:10]} 51. Kf3 {[%clk 0:00:07]}  Nh4+ {[%clk 0:00:11]} 52. Ke2 {[%clk 0:00:07]}  Kxh5 {[%clk 0:00:11]} 53. Kd3 {[%clk 0:00:07]}  Kg4 {[%clk 0:00:12]} 54. Ke2 {[%clk 0:00:08]}  Nf5 {[%clk 0:00:11]} 55. Kf1 {[%clk 0:00:09]}  f3 {[%clk 0:00:12]} 56. Ke1 {[%clk 0:00:10]}  Kg3 {[%clk 0:00:12]} 57. Kf1 {[%clk 0:00:10]}  e2+ {[%clk 0:00:12]} 58. Ke1 {[%clk 0:00:11]}  Kg2 {[%clk 0:00:12]} 59. Kd2 {[%clk 0:00:11]}  Ng3 {[%clk 0:00:12]} 60. Kc2 {[%clk 0:00:12]}  e1=Q {[%clk 0:00:13]} 61. Kb2 {[%clk 0:00:12]}  Qd2+ {[%clk 0:00:12]} 0-1


[Site "https://www.chess.com"]

[Event "Titled Tuesday Blitz June 20 Late 2023"]
[White "Seletsky, Grigory"]
[Black "Martins, Bruno Andre Leite"]
[WhiteFideId "14112191"]
[BlackFideId "1942255"]
[WhiteElo "2491"]
[BlackElo "2241"]
[Result "1-0"]
[Round "11"]
[TimeControl "180+2"]
[Date "2023.06.20"]
[WhiteClock "0:01:10"]
[BlackClock "0:00:02"]
[Board "57"]

1. b3 {[%clk 0:02:58]}  e5 {[%clk 0:02:00]} 2. Bb2 {[%clk 0:02:54]}  Nc6 {[%clk 0:02:01]} 3. e3 {[%clk 0:02:54]}  d5 {[%clk 0:01:52]} 4. Bb5 {[%clk 0:02:54]}  Bd6 {[%clk 0:01:52]} 5. Ne2 {[%clk 0:02:54]}  Nf6 {[%clk 0:01:52]} 6. d3 {[%clk 0:02:52]}  O-O {[%clk 0:01:52]} 7. Bxc6 {[%clk 0:02:50]}  bxc6 {[%clk 0:01:51]} 8. Nd2 {[%clk 0:02:51]}  Be6 {[%clk 0:01:45]} 9. h3 {[%clk 0:02:49]}  Nd7 {[%clk 0:01:35]} 10. O-O {[%clk 0:02:37]}  Qg5 {[%clk 0:01:19]} 11. f3 {[%clk 0:02:36]}  Bxh3 {[%clk 0:01:16]} 12. Rf2 {[%clk 0:02:35]}  Be6 {[%clk 0:01:05]} 13. f4 {[%clk 0:02:25]}  exf4 {[%clk 0:01:01]} 14. exf4 {[%clk 0:02:25]}  Qh4 {[%clk 0:00:52]} 15. Nf3 {[%clk 0:02:24]}  Qg4 {[%clk 0:00:50]} 16. Nh2 {[%clk 0:02:14]}  Qh5 {[%clk 0:00:45]} 17. g4 {[%clk 0:01:51]}  Bxg4 {[%clk 0:00:44]} 18. Nxg4 {[%clk 0:01:51]}  Qxg4+ {[%clk 0:00:44]} 19. Rg2 {[%clk 0:01:49]}  Qxg2+ {[%clk 0:00:35]} 20. Kxg2 {[%clk 0:01:48]}  Rae8 {[%clk 0:00:35]} 21. Ng3 {[%clk 0:01:38]}  g6 {[%clk 0:00:28]} 22. Qf1 {[%clk 0:01:34]}  Re3 {[%clk 0:00:26]} 23. Re1 {[%clk 0:01:32]}  Rfe8 {[%clk 0:00:22]} 24. Rxe3 {[%clk 0:01:32]}  Rxe3 {[%clk 0:00:22]} 25. Bd4 {[%clk 0:01:31]}  Re8 {[%clk 0:00:21]} 26. c4 {[%clk 0:01:27]}  c5 {[%clk 0:00:20]} 27. Bc3 {[%clk 0:01:21]}  d4 {[%clk 0:00:20]} 28. Bd2 {[%clk 0:01:22]}  Nf6 {[%clk 0:00:20]} 29. Qf3 {[%clk 0:01:21]}  h5 {[%clk 0:00:19]} 30. Ne4 {[%clk 0:01:18]}  Nxe4 {[%clk 0:00:13]} 31. dxe4 {[%clk 0:01:17]}  f6 {[%clk 0:00:13]} 32. Be1 {[%clk 0:01:13]}  Kf7 {[%clk 0:00:12]} 33. Bg3 {[%clk 0:01:13]}  Rh8 {[%clk 0:00:09]} 34. e5 {[%clk 0:01:13]}  Be7 {[%clk 0:00:09]} 35. Qd5+ {[%clk 0:01:12]}  Kg7 {[%clk 0:00:02]} 36. Qe6 {[%clk 0:01:10]} 1-0


[Site "https://www.chess.com"]

[Event "Titled Tuesday Blitz June 20 Late 2023"]
[White "Herrera, Juan Sebastian"]
[Black "Shapiro, Viktor"]
[WhiteFideId "4403266"]
[BlackFideId "4175700"]
[WhiteElo "2255"]
[BlackElo "2212"]
[Result "1-0"]
[Round "11"]
[TimeControl "180+2"]
[Date "2023.06.20"]
[WhiteClock "0:00:56"]
[BlackClock "0:00:15"]
[Board "60"]

1. Nf3 {[%clk 0:03:00]}  Nf6 {[%clk 0:02:59]} 2. g3 {[%clk 0:03:01]}  d5 {[%clk 0:02:59]} 3. Bg2 {[%clk 0:03:01]}  Bg4 {[%clk 0:02:59]} 4. O-O {[%clk 0:03:00]}  Nbd7 {[%clk 0:02:56]} 5. d4 {[%clk 0:02:58]}  e6 {[%clk 0:02:55]} 6. c4 {[%clk 0:02:57]}  c6 {[%clk 0:02:55]} 7. b3 {[%clk 0:02:56]}  Bd6 {[%clk 0:02:50]} 8. Bb2 {[%clk 0:02:56]}  O-O {[%clk 0:02:50]} 9. h3 {[%clk 0:02:52]}  Bxf3 {[%clk 0:02:50]} 10. Bxf3 {[%clk 0:02:52]}  a5 {[%clk 0:02:49]} 11. a4 {[%clk 0:02:48]}  Qc7 {[%clk 0:02:37]} 12. Nc3 {[%clk 0:02:38]}  Bb4 {[%clk 0:02:36]} 13. Rc1 {[%clk 0:02:36]}  Rad8 {[%clk 0:02:32]} 14. cxd5 {[%clk 0:02:35]}  exd5 {[%clk 0:02:31]} 15. Nxd5 {[%clk 0:02:30]}  Nxd5 {[%clk 0:02:30]} 16. Bxd5 {[%clk 0:02:31]}  Nf6 {[%clk 0:02:29]} 17. Bf3 {[%clk 0:02:29]}  Rfe8 {[%clk 0:02:21]} 18. Qc2 {[%clk 0:02:29]}  Qb6 {[%clk 0:02:17]} 19. Rfd1 {[%clk 0:02:27]}  Bd6 {[%clk 0:02:01]} 20. Kg2 {[%clk 0:02:23]}  Nd5 {[%clk 0:01:52]} 21. e4 {[%clk 0:02:10]}  Nb4 {[%clk 0:01:52]} 22. Qc4 {[%clk 0:02:10]}  Bf8 {[%clk 0:01:49]} 23. d5 {[%clk 0:02:05]}  cxd5 {[%clk 0:01:49]} 24. exd5 {[%clk 0:02:06]}  Bd6 {[%clk 0:01:37]} 25. Qg4 {[%clk 0:02:04]}  Be5 {[%clk 0:01:36]} 26. Bxe5 {[%clk 0:02:01]}  Rxe5 {[%clk 0:01:36]} 27. d6 {[%clk 0:02:02]}  Re6 {[%clk 0:01:28]} 28. d7 {[%clk 0:01:59]}  Nc6 {[%clk 0:01:21]} 29. Qg5 {[%clk 0:01:43]}  h6 {[%clk 0:00:51]} 30. Qb5 {[%clk 0:01:41]}  Qc7 {[%clk 0:00:42]} 31. Bg4 {[%clk 0:01:41]}  Re7 {[%clk 0:00:39]} 32. h4 {[%clk 0:01:41]}  g6 {[%clk 0:00:38]} 33. Qc5 {[%clk 0:01:39]}  Re5 {[%clk 0:00:34]} 34. Qc3 {[%clk 0:01:34]}  f5 {[%clk 0:00:32]} 35. Bf3 {[%clk 0:01:33]}  Rxd7 {[%clk 0:00:28]} 36. Rxd7 {[%clk 0:01:26]}  Qxd7 {[%clk 0:00:29]} 37. Bxc6 {[%clk 0:01:27]}  Qxc6+ {[%clk 0:00:29]} 38. Qxc6 {[%clk 0:01:27]}  bxc6 {[%clk 0:00:30]} 39. Rxc6 {[%clk 0:01:27]}  Kg7 {[%clk 0:00:28]} 40. Ra6 {[%clk 0:01:27]}  Rc5 {[%clk 0:00:27]} 41. Ra7+ {[%clk 0:01:26]}  Kf6 {[%clk 0:00:27]} 42. Rb7 {[%clk 0:01:26]}  Rc3 {[%clk 0:00:25]} 43. Rb5 {[%clk 0:01:26]}  g5 {[%clk 0:00:25]} 44. h5 {[%clk 0:01:25]}  g4 {[%clk 0:00:24]} 45. Kf1 {[%clk 0:01:17]}  Kg5 {[%clk 0:00:20]} 46. Ke2 {[%clk 0:01:16]}  Rf3 {[%clk 0:00:19]} 47. Rxa5 {[%clk 0:01:08]}  Rxb3 {[%clk 0:00:17]} 48. Rb5 {[%clk 0:01:08]}  Ra3 {[%clk 0:00:17]} 49. a5 {[%clk 0:01:09]}  Ra2+ {[%clk 0:00:17]} 50. Ke3 {[%clk 0:01:08]}  Ra3+ {[%clk 0:00:18]} 51. Kd4 {[%clk 0:01:06]}  Ra2 {[%clk 0:00:17]} 52. Kc5 {[%clk 0:00:58]}  Rxf2 {[%clk 0:00:17]} 53. Kb6 {[%clk 0:00:58]}  Ra2 {[%clk 0:00:15]} 54. a6 {[%clk 0:00:58]}  Kxh5 {[%clk 0:00:16]} 55. Rxf5+ {[%clk 0:00:58]}  Kg6 {[%clk 0:00:16]} 56. Ra5 {[%clk 0:00:57]}  Rb2+ {[%clk 0:00:16]} 57. Rb5 {[%clk 0:00:58]}  Ra2 {[%clk 0:00:16]} 58. a7 {[%clk 0:00:58]}  Rxa7 {[%clk 0:00:15]} 59. Kxa7 {[%clk 0:00:59]}  h5 {[%clk 0:00:16]} 60. Kb6 {[%clk 0:00:56]}  h4 {[%clk 0:00:16]} 61. gxh4 {[%clk 0:00:56]}  g3 {[%clk 0:00:15]} 62. Rg5+ {[%clk 0:00:56]} 1-0


[Site "https://www.chess.com"]

[Event "Titled Tuesday Blitz June 20 Late 2023"]
[White "Buchenau, Frank"]
[Black "Ismayil, Malak"]
[WhiteFideId "4604350"]
[BlackFideId "13412604"]
[WhiteElo "2157"]
[BlackElo "1868"]
[Result "0-1"]
[Round "11"]
[TimeControl "180+2"]
[Date "2023.06.20"]
[WhiteClock "0:00:00"]
[BlackClock "0:00:16"]
[Board "62"]

1. e4 {[%clk 0:03:00]}  e5 {[%clk 0:02:58]} 2. Bc4 {[%clk 0:03:00]}  Nc6 {[%clk 0:02:58]} 3. Nf3 {[%clk 0:02:59]}  Bc5 {[%clk 0:02:58]} 4. c3 {[%clk 0:02:59]}  Nf6 {[%clk 0:02:58]} 5. d3 {[%clk 0:02:59]}  O-O {[%clk 0:02:57]} 6. O-O {[%clk 0:02:59]}  h6 {[%clk 0:02:57]} 7. Re1 {[%clk 0:02:57]}  d6 {[%clk 0:02:57]} 8. Nbd2 {[%clk 0:02:55]}  a6 {[%clk 0:02:56]} 9. b4 {[%clk 0:02:48]}  Bb6 {[%clk 0:02:56]} 10. a4 {[%clk 0:02:48]}  Be6 {[%clk 0:02:56]} 11. Bxe6 {[%clk 0:02:38]}  fxe6 {[%clk 0:02:56]} 12. Nc4 {[%clk 0:02:37]}  Ba7 {[%clk 0:02:54]} 13. Be3 {[%clk 0:02:31]}  Qe8 {[%clk 0:02:52]} 14. b5 {[%clk 0:02:28]}  axb5 {[%clk 0:02:42]} 15. axb5 {[%clk 0:02:27]}  Bxe3 {[%clk 0:02:40]} 16. Rxe3 {[%clk 0:02:26]}  Ne7 {[%clk 0:02:37]} 17. b6 {[%clk 0:02:18]}  Qc6 {[%clk 0:02:21]} 18. bxc7 {[%clk 0:02:12]}  Qxc7 {[%clk 0:02:22]} 19. Rb1 {[%clk 0:01:58]}  Rfb8 {[%clk 0:02:17]} 20. Qb3 {[%clk 0:01:45]}  b5 {[%clk 0:02:09]} 21. Ncd2 {[%clk 0:01:45]}  Kf7 {[%clk 0:01:58]} 22. d4 {[%clk 0:01:35]}  Nc6 {[%clk 0:01:53]} 23. d5 {[%clk 0:01:15]}  exd5 {[%clk 0:01:51]} 24. exd5 {[%clk 0:01:16]}  Na5 {[%clk 0:01:50]} 25. Qc2 {[%clk 0:00:54]}  Nxd5 {[%clk 0:01:38]} 26. Qf5+ {[%clk 0:00:39]}  Nf6 {[%clk 0:01:38]} 27. Ne4 {[%clk 0:00:31]}  Qe7 {[%clk 0:01:21]} 28. Rd1 {[%clk 0:00:29]}  Nc4 {[%clk 0:01:20]} 29. Red3 {[%clk 0:00:22]}  Ra6 {[%clk 0:01:13]} 30. Re1 {[%clk 0:00:12]}  Kg8 {[%clk 0:01:12]} 31. Nxf6+ {[%clk 0:00:11]}  Qxf6 {[%clk 0:01:13]} 32. Qd7 {[%clk 0:00:10]}  Qf7 {[%clk 0:01:08]} 33. Qg4 {[%clk 0:00:08]}  Re8 {[%clk 0:00:47]} 34. h3 {[%clk 0:00:07]}  d5 {[%clk 0:00:32]} 35. Nh4 {[%clk 0:00:07]}  Rf6 {[%clk 0:00:29]} 36. f3 {[%clk 0:00:04]}  Rf4 {[%clk 0:00:26]} 37. Qg3 {[%clk 0:00:03]}  Kh7 {[%clk 0:00:26]} 38. Qf2 {[%clk 0:00:02]}  e4 {[%clk 0:00:23]} 39. Rd4 {[%clk 0:00:01]}  e3 {[%clk 0:00:17]} 40. Qg3 {[%clk 0:00:01]}  Rxd4 {[%clk 0:00:15]} 41. cxd4 {[%clk 0:00:00]}  Qf6 {[%clk 0:00:16]} 0-1


[Site "https://www.chess.com"]

[Event "Titled Tuesday Blitz June 20 Late 2023"]
[White "Xu, Yi"]
[Black "Kostiukov, Alexandr"]
[WhiteFideId "8605564"]
[BlackFideId "14108100"]
[WhiteElo "2460"]
[BlackElo "2202"]
[Result "1-0"]
[Round "11"]
[TimeControl "180+2"]
[Date "2023.06.20"]
[WhiteClock "0:00:19"]
[BlackClock "0:00:00"]
[Board "66"]

1. d4 {[%clk 0:03:00]}  g6 {[%clk 0:02:56]} 2. Nf3 {[%clk 0:02:55]}  Bg7 {[%clk 0:02:56]} 3. g3 {[%clk 0:02:56]}  d6 {[%clk 0:02:54]} 4. Bg2 {[%clk 0:02:56]}  e5 {[%clk 0:02:55]} 5. O-O {[%clk 0:02:49]}  Qe7 {[%clk 0:02:49]} 6. c4 {[%clk 0:02:39]}  Nf6 {[%clk 0:02:35]} 7. Nc3 {[%clk 0:02:37]}  O-O {[%clk 0:02:30]} 8. e4 {[%clk 0:02:34]}  h6 {[%clk 0:02:21]} 9. h3 {[%clk 0:02:31]}  a5 {[%clk 0:02:06]} 10. Re1 {[%clk 0:02:29]}  Nc6 {[%clk 0:01:40]} 11. Nd5 {[%clk 0:02:26]}  Qd8 {[%clk 0:01:26]} 12. dxe5 {[%clk 0:02:20]}  Nxe5 {[%clk 0:01:16]} 13. Nxe5 {[%clk 0:01:58]}  dxe5 {[%clk 0:01:14]} 14. Be3 {[%clk 0:01:58]}  Nd7 {[%clk 0:01:05]} 15. Qd2 {[%clk 0:01:52]}  c6 {[%clk 0:00:56]} 16. Nc3 {[%clk 0:01:49]}  Kh7 {[%clk 0:00:52]} 17. Rad1 {[%clk 0:01:49]}  Qe7 {[%clk 0:00:51]} 18. Na4 {[%clk 0:01:44]}  b5 {[%clk 0:00:47]} 19. cxb5 {[%clk 0:01:37]}  cxb5 {[%clk 0:00:47]} 20. Nc3 {[%clk 0:01:38]}  b4 {[%clk 0:00:27]} 21. Nd5 {[%clk 0:01:38]}  Qd6 {[%clk 0:00:21]} 22. h4 {[%clk 0:01:23]}  Bb7 {[%clk 0:00:19]} 23. Nxb4 {[%clk 0:01:17]}  Qxb4 {[%clk 0:00:13]} 24. Qxb4 {[%clk 0:01:12]}  axb4 {[%clk 0:00:14]} 25. Rxd7 {[%clk 0:01:12]}  Bc8 {[%clk 0:00:14]} 26. Rc7 {[%clk 0:01:12]}  Rxa2 {[%clk 0:00:13]} 27. Bc5 {[%clk 0:01:12]}  Re8 {[%clk 0:00:10]} 28. Bf1 {[%clk 0:01:06]}  Be6 {[%clk 0:00:09]} 29. Rb1 {[%clk 0:00:50]}  Bf8 {[%clk 0:00:07]} 30. Be3 {[%clk 0:00:40]}  b3 {[%clk 0:00:06]} 31. Bd2 {[%clk 0:00:24]}  Ra4 {[%clk 0:00:04]} 32. f3 {[%clk 0:00:19]}  Rc8 {[%clk 0:00:03]} 33. Rxc8 {[%clk 0:00:18]}  Bxc8 {[%clk 0:00:00]} 34. Bc3 {[%clk 0:00:19]} 1-0


[Site "https://www.chess.com"]

[Event "Titled Tuesday Blitz June 20 Late 2023"]
[White "Bruedigam, Martin"]
[Black "Slavin, Alexey"]
[WhiteFideId "24608033"]
[BlackFideId "24104388"]
[WhiteElo "2331"]
[BlackElo "2264"]
[Result "1-0"]
[Round "11"]
[TimeControl "180+2"]
[Date "2023.06.20"]
[WhiteClock "0:00:41"]
[BlackClock "0:00:00"]
[Board "68"]

1. c4 {[%clk 0:03:00]}  Nc6 {[%clk 0:02:59]} 2. Nc3 {[%clk 0:02:57]}  Nf6 {[%clk 0:02:59]} 3. g3 {[%clk 0:02:58]}  e5 {[%clk 0:02:58]} 4. Bg2 {[%clk 0:02:58]}  Bc5 {[%clk 0:02:58]} 5. e3 {[%clk 0:02:56]}  d6 {[%clk 0:02:57]} 6. Nge2 {[%clk 0:02:56]}  a6 {[%clk 0:02:57]} 7. d4 {[%clk 0:02:55]}  exd4 {[%clk 0:02:56]} 8. exd4 {[%clk 0:02:56]}  Ba7 {[%clk 0:02:56]} 9. h3 {[%clk 0:02:54]}  O-O {[%clk 0:02:55]} 10. O-O {[%clk 0:02:54]}  Re8 {[%clk 0:02:54]} 11. Bg5 {[%clk 0:02:50]}  h6 {[%clk 0:02:54]} 12. Be3 {[%clk 0:02:49]}  Ne7 {[%clk 0:02:50]} 13. Qd2 {[%clk 0:02:41]}  Nf5 {[%clk 0:02:49]} 14. Bf4 {[%clk 0:02:40]}  Rb8 {[%clk 0:02:46]} 15. Rfe1 {[%clk 0:02:36]}  Bd7 {[%clk 0:02:45]} 16. g4 {[%clk 0:02:27]}  Nh4 {[%clk 0:02:44]} 17. Bh1 {[%clk 0:02:27]}  Ng6 {[%clk 0:02:44]} 18. Bg3 {[%clk 0:02:28]}  Bc6 {[%clk 0:02:32]} 19. Nd5 {[%clk 0:02:18]}  Nxd5 {[%clk 0:02:32]} 20. cxd5 {[%clk 0:02:17]}  Bd7 {[%clk 0:02:28]} 21. Rac1 {[%clk 0:02:10]}  Bb6 {[%clk 0:02:26]} 22. Qd3 {[%clk 0:02:03]}  Qe7 {[%clk 0:02:17]} 23. Bf3 {[%clk 0:01:56]}  Nh4 {[%clk 0:02:05]} 24. Bxh4 {[%clk 0:01:51]}  Qxh4 {[%clk 0:02:05]} 25. Kg2 {[%clk 0:01:52]}  h5 {[%clk 0:01:59]} 26. gxh5 {[%clk 0:01:50]}  Qxh3+ {[%clk 0:01:54]} 27. Kg1 {[%clk 0:01:48]}  Bg4 {[%clk 0:01:27]} 28. Be4 {[%clk 0:01:46]}  Qxh5 {[%clk 0:01:23]} 29. Ng3 {[%clk 0:01:45]}  Qh3 {[%clk 0:01:21]} 30. Bf5 {[%clk 0:01:35]}  Bxf5 {[%clk 0:01:18]} 31. Qxf5 {[%clk 0:01:35]}  Qxf5 {[%clk 0:01:16]} 32. Nxf5 {[%clk 0:01:36]}  g6 {[%clk 0:01:11]} 33. Rxe8+ {[%clk 0:01:34]}  Rxe8 {[%clk 0:01:11]} 34. Ne3 {[%clk 0:01:34]}  Re4 {[%clk 0:00:51]} 35. Nc2 {[%clk 0:01:20]}  Kf8 {[%clk 0:00:36]} 36. Kf1 {[%clk 0:01:17]}  Ke7 {[%clk 0:00:36]} 37. f3 {[%clk 0:01:18]}  Rh4 {[%clk 0:00:35]} 38. Kg2 {[%clk 0:01:17]}  Kd7 {[%clk 0:00:31]} 39. Kg3 {[%clk 0:01:17]}  Rh5 {[%clk 0:00:28]} 40. Ne3 {[%clk 0:00:58]}  Bxd4 {[%clk 0:00:26]} 41. Ng4 {[%clk 0:00:55]}  Rxd5 {[%clk 0:00:24]} 42. b3 {[%clk 0:00:53]}  f5 {[%clk 0:00:17]} 43. Nh2 {[%clk 0:00:51]}  Be5+ {[%clk 0:00:17]} 44. f4 {[%clk 0:00:51]}  Rd3+ {[%clk 0:00:17]} 45. Nf3 {[%clk 0:00:52]}  Bf6 {[%clk 0:00:15]} 46. Kf2 {[%clk 0:00:52]}  c5 {[%clk 0:00:14]} 47. Rg1 {[%clk 0:00:51]}  Rc3 {[%clk 0:00:10]} 48. Rxg6 {[%clk 0:00:51]}  Bd4+ {[%clk 0:00:10]} 49. Kg3 {[%clk 0:00:43]}  Rc2 {[%clk 0:00:06]} 50. Rg5 {[%clk 0:00:41]}  Rxa2 {[%clk 0:00:00]} 51. Rxf5 {[%clk 0:00:41]} 1-0


[Site "https://www.chess.com"]